Cogmind - Beta 16.1 @@@ ROGUE MODE // 2026.03.04 @ 15:03:39 Player: CometVoid Result: Self-destructed Performance ------------- Evolutions (3) 1500 Regions Visited (4) 800 Robots Destroyed (69) 345 Value Destroyed (1953) 1953 Prototype IDs (2) 40 Alien Tech Used (0) 0 Bonus (33) 33 TOTAL SCORE: 4671 Bonus ------- High Alert Combat Kills 33 Cogmind --------- Core Integrity 700/700 Matter 251/300 Energy 135/160 System Corruption 0% Temperature Cool (0) Movement Rolling (95) Ox1 Location -7/Factory Parts ------- > --- POWER (2) -------- Light Nuclear Core > --- PROPULSION (4) --- Armored Treads Advanced Treads Wheel Wheel > --- UTILITY (5) ------ Large Storage Unit Improved Sensor Array Improved Signal Interpreter Transmission Jammer Hacking Suite > --- WEAPON (2) ------- Field Laser High-powered Shotgun > --- INVENTORY (15) --- Light Deuterium Engine Airjet Aerolev Unit Aerolev Unit Aerolev Unit Gravmag System Large Storage Unit Visual Processing Unit Visual Processing Unit Improved Signal Interpreter Seismic Detector Targeting Computer Improved Grenade Launcher Peak State ------------ > --- POWER ------------ Light Nuclear Core Light Angular Momentum Engine > --- PROPULSION ------- Armored Treads Armored Treads Armored Treads Advanced Treads > --- UTILITY ---------- Large Storage Unit Improved Sensor Array Improved Signal Interpreter Transmission Jammer Hacking Suite > --- WEAPON ----------- Field Laser High-powered Shotgun > --- INVENTORY -------- Light Deuterium Engine Wheel Wheel Airjet Aerolev Unit Aerolev Unit Aerolev Unit Gravmag System Large Storage Unit Visual Processing Unit Visual Processing Unit Improved Signal Interpreter Seismic Detector Targeting Computer Improved Grenade Launcher [Rating: 43] Favorites ----------- Power Light Deuterium Engine Engine Light Deuterium Engine Power Core Light Nuclear Core Propulsion Light Treads Treads Light Treads Wheel Wheel Hover Unit Aerolev Unit Utility Large Storage Unit Device Seismic Detector Storage Large Storage Unit Processor Improved Signal Interpreter Hackware Hacking Suite Weapon Light Assault Rifle Energy Gun Medium Laser Ballistic Gun Light Assault Rifle Ballistic Cannon Flak Cannon Launcher Improved Grenade Launcher Special Weapon Mining Laser Build | -11 -10 -9 -8 -7 ------- Run | Yrd Mat Mat Mat Fac Slots Evolved 6 | . . 2 2 2 Power 1 | . . 1 . . Propulsion 2 | . . . 1 1 Utility 3 | . . 1 1 1 Weapon . | . . . . . Parts Attached 52 | 8 3 9 28 4 Power 13 | 1 . 2 10 . Engine 10 | 1 . 2 7 . Core 3 | . . . 3 . Reactor . | . . . . . Propulsion 15 | 2 1 1 9 2 Treads 11 | 2 . 1 8 . Leg . | . . . . . Wheel 2 | . 1 . . 1 Hover 2 | . . . 1 1 Flight . | . . . . . Utility 12 | 2 1 4 4 1 Device 6 | 1 . 2 2 1 Storage 2 | 1 1 . . . Processor 2 | . . 1 1 . Hackware 2 | . . 1 1 . Protection . | . . . . . Artifact . | . . . . . Weapon 12 | 3 1 2 5 1 Energy Gun 6 | 2 . 1 3 . Energy Cannon . | . . . . . Ballistic Gun 3 | 1 . 1 . 1 Ballistic Cannon 1 | . . . 1 . Launcher 1 | . . . 1 . Special Weapon 1 | . 1 . . . Impact Weapon . | . . . . . Slashing Weapon . | . . . . . Piercing Weapon . | . . . . . Special Melee Weapon . | . . . . . Unidentified Prototypes 2 | . . . 2 . Parts Lost 18 | . . 2 13 3 Power 7 | . . . 6 1 Propulsion 5 | . . . 3 2 Utility 3 | . . 2 1 . Weapon 3 | . . . 3 . Highest Loss Streak 4 | . . 1 4 3 To Critical Strikes . | . . . . . Average Backups 12 | 5 8 12 14 14 Power . | . . . 1 1 Propulsion 5 | 3 4 6 6 6 Utility 2 | . 2 2 3 6 Weapon 2 | 1 1 2 3 1 Tool/Special . | . . . . . Unused Backups 29 | . 4 3 13 9 Power 5 | . 1 . 4 . Propulsion 12 | . 3 2 4 3 Utility 8 | . . 1 1 6 Weapon 4 | . . . 4 . Tool/Special . | . . . . . Average Slot Usage (%) 94 | . 100 92 93 87 Engine 14 | . 14 19 14 6 Core 2 | . . . 2 7 Treads 25 | . 27 22 25 27 Device 12 | . 14 12 11 8 Storage 10 | . 14 11 9 7 Processor 5 | . . 4 9 7 Hackware 2 | . . 1 3 7 Energy Gun 9 | . 13 11 7 7 Ballistic Gun 7 | . 14 11 3 3 Ballistic Cannon 2 | . . . 5 . Peak Build Rating 43 | 7 8 13 36 43 Average Rating 18 | 5 7 11 24 37 On Entrance 12 | . 7 8 13 33 Avg Prop Armor Cover (%) 15 | . 13 . . 19 Naked Turns . | . . . . . Heaviest Build 42 | 14 29 39 41 42 Greatest Support 82 | 40 40 40 62 82 Greatest Overweight (x) 2 | . 2 . 1 1 Average Overweight (x) . | . . . . . Largest Inventory Capacity 15 | 8 15 15 15 15 Average Capacity 13 | 7 10 15 15 15 Most Carried 15 | 8 10 15 15 15 Average Carried 12 | 5 8 13 14 14 Final Capacity 15 | 8 15 15 15 15 Final Carried 15 | 8 10 15 15 13 Class Distribution -------------------- 75% | Mutant 24% | Scavenger-Mutant Dominant Class ---------------- Mutant | -10/Materials Scavenger-Mutant | -9/Materials Mutant | -8/Materials Mutant | -7/Factory Resources | -11 -10 -9 -8 -7 ----------- Run | Yrd Mat Mat Mat Fac Matter Collected 1274 | 302 118 152 658 44 Remotely 115 | . . . 115 . Salvage Created 1882 | 82 392 318 1046 44 Parts 112 | 9 23 27 53 . Haulers Intercepted . | . . . . . Recyclers Shooed 5 | 1 4 . . . Parts Field Recycled . | . . . . . Retrieved Matter . | . . . . . Parts Self-Destructed . | . . . . . Prevented . | . . . . . Parts Restored . | . . . . . Kills | -11 -10 -9 -8 -7 ------- Run | Yrd Mat Mat Mat Fac Combat Hostiles Destroyed 48 | . 8 12 27 1 Melee 2 | . . . 2 . Guns 32 | . 8 12 11 1 Cannons 8 | . . . 8 . AOE 6 | . . . 6 . Classes Destroyed 10 | 2 5 1 2 . Worker 7 | 1 . . 6 . Builder 1 | . . . 1 . Tunneler 3 | 3 . . . . Recycler 4 | . 2 . 2 . Operator 3 | . 1 . 2 . Watcher 3 | . 2 . 1 . Swarmer 13 | . 5 8 . . Grunt 23 | . 3 1 19 . Sentry 9 | . . 3 6 . Hunter 3 | . . . 2 1 Best Kill Streak 13 | 2 3 4 13 1 Combat Bots Only 7 | . 3 4 7 1 Max Kills in Single Turn 3 | 1 1 1 3 1 Gunslinging . | . . . . . Exploded 1 | . . . 1 . Melee 1 | . . . 1 . Uniques/NPCs Destroyed . | . . . . . Combat | -11 -10 -9 -8 -7 -------- Run | Yrd Mat Mat Mat Fac Hostile Shots Fired 276 | . 36 60 168 12 Missed 60 | . 9 14 36 1 Hits 216 | . 27 46 132 11 Projectile 216 | . 27 46 132 11 Critical Strikes 6 | . 1 . 5 . Part Disruptions 1 | . . . 1 . Damage Taken 3128 | . 243 482 2216 187 Core 481 | . 47 74 360 . Absorbed by Shields . | . . . . . Regen/Repaired (Parts) 234 | . 90 . 144 . Core Remaining (%) 74 | 100 81 81 34 . Volleys Fired 182 | 13 46 32 83 8 Largest 2 | 2 2 2 2 2 Hottest 163 | 90 120 79 163 88 Shots Fired 358 | 26 90 64 162 16 Gun 285 | 26 87 64 92 16 Cannon 53 | . . . 53 . Launcher 13 | . . . 13 . Special 7 | . 3 . 4 . Kinetic 168 | 12 44 32 72 8 Thermal 175 | 12 46 32 77 8 Explosive 13 | . . . 13 . Electromagnetic 2 | 2 . . . . Robot Hit Streak 14 | 5 11 5 14 4 Robot Miss Streak 10 | 1 4 5 10 5 Penetration Max . | . . . . . Secondary Targets . | . . . . . Shots Hit Robots 222 | 18 48 33 115 8 Core Hits 148 | 7 23 16 99 3 Critical Kills . | . . . . . Critical Parts Destroyed . | . . . . . Critical Strikes 10 | . 2 4 3 1 Burn 10 | . 2 4 3 1 Melee Attacks . | . . . . . Impact . | . . . . . Slashing . | . . . . . Piercing . | . . . . . Sneak Attacks . | . . . . . Combat Hostiles . | . . . . . Follow-up Attacks . | . . . . . Damage Inflicted 4457 | 190 518 414 3181 154 Guns 2362 | 190 510 414 1094 154 Cannons 743 | . . . 743 . Explosions 1211 | . . . 1211 . Melee . | . . . . . Ramming 93 | . 8 . 85 . Kinetic 1462 | 72 195 147 962 86 Thermal 1676 | 103 315 267 923 68 Explosive 1211 | . . . 1211 . Electromagnetic 15 | 15 . . . . Impact . | . . . . . Slashing . | . . . . . Piercing . | . . . . . Highest Corruption 1 | . 1 . . . Average Corruption 1 | . 1 . . . Corruption Purged . | . . . . . Corruption Blocked . | . . . . . Effects 1 | . 1 . . . Energy Discharges 1 | . 1 . . . Overload Shots . | . . . . . Overflow Damage 34 | . . . 34 . Projectiles . | . . . . . Explosions 34 | . . . 34 . Melee . | . . . . . Knockbacks 12 | . . . 12 . Impact . | . . . . . Kinetic 11 | . . . 11 . Secondary 1 | . . . 1 . Self-Inflicted Damage 131 | . . . 131 . Shots 5 | . . . 5 . Rammed 16 | . 3 . 12 1 Targets Rammed 20 | . 3 . 16 1 Kicked . | . . . . . Crushed 4 | . . . 4 . Highest Temperature 436 | 60 146 150 436 99 Average Temperature 86 | 24 41 51 123 51 Received Heat Transfer 1092 | . 48 72 972 . Effects 15 | . . . 15 . Shutdowns 3 | . . . 3 . Energy Bleed 1 | . . . 1 . Interference 3 | . . . 3 . Damage (major) 8 | . . . 8 . Siege Activations . | . . . . . Martial Activations . | . . . . . Shielding Activations . | . . . . . Robots Disrupted . | . . . . . Combat Hostiles . | . . . . . Robots Corrupted . | . . . . . Combat Hostiles . | . . . . . Parts Fried . | . . . . . Impact Corruptions 1 | . . . 1 . Robots Melted . | . . . . . Combat Hostiles . | . . . . . Parts Melted 3 | 1 2 . . . Heat Transferred 4836 | 296 1073 1036 2209 222 Parts Sabotaged . | . . . . . Parts Stolen . | . . . . . Parts Stripped . | . . . . . Power Chain Reactions 1 | . . . 1 . Alert | -11 -10 -9 -8 -7 ------- Run | Yrd Mat Mat Mat Fac Maximum Alert Level 2 | . . . 2 . Low Security (%) 87 | 100 100 100 74 100 Level 1 8 | . . . 17 . Level 2 4 | . . . 8 . Level 3 . | . . . . . Level 4 . | . . . . . Level 5 . | . . . . . High Security . | . . . . . Max Security . | . . . . . Peak Influence 423 | 5 190 199 423 182 Initial 182 | . . . 44 182 Average 100 | 1 23 116 148 96 Influence Increases 1690 | 20 350 349 940 31 Destroy 0b10 Robot/C 960 | . 160 240 540 20 Destroy 0b10 Robot/NC 105 | 20 25 . 60 . Destroy Leader 246 | . 44 50 142 10 Successful Hack 68 | . 14 12 42 . Disable Machine 75 | . 15 . 60 . Destroy Structure 56 | . 2 2 51 1 Partial Spotted 15 | . . . 15 . Lose Combat Pursuer 165 | . 90 45 30 . Influence Decreases 1670 | 20 350 242 645 413 Entered New Map 283 | . . . 63 220 Time Decay 1067 | 20 200 222 452 173 Lost Part 170 | . . 20 130 20 Purge Threat 150 | . 150 . . . Squads Dispatched 8 | . 3 1 3 1 Investigation 4 | . 1 1 1 1 Extermination . | . . . . . Reinforcement 4 | . 2 . 2 . Assault . | . . . . . Garrison . | . . . . . Intercept . | . . . . . Searches Triggered . | . . . . . Construction Impeded . | . . . . . Haulers Reinforced . | . . . . . Active Scanning Responses . | . . . . . Cargo Convoy Interrupts . | . . . . . Stealth | -11 -10 -9 -8 -7 --------- Run | Yrd Mat Mat Mat Fac Distress Signals 7 | . . 2 5 . Communications Jammed . | . . . . . Distress Signals . | . . . . . Times Spotted 75 | . 18 16 38 3 Peak Tracking Total 7 | . 5 7 6 2 Tactical Retreats 9 | . 4 2 3 . ECM-based Alert Blocks 1 | . . . 1 . Traps | -11 -10 -9 -8 -7 ------- Run | Yrd Mat Mat Mat Fac Traps Triggered 1 | . . . 1 . Indirectly . | . . . . . Trap Hack Attempts . | . . . . . Triggered . | . . . . . Disarmed . | . . . . . Reprogrammed . | . . . . . Reused . | . . . . . Traps Extracted . | . . . . . Installed . | . . . . . Triggered . | . . . . . Machines | -11 -10 -9 -8 -7 ---------- Run | Yrd Mat Mat Mat Fac Machines Disabled 5 | . 1 . 4 . Max in Single Turn 1 | . 1 . 1 . Machines Repaired . | . . . . . Machines Dismantled . | . . . . . Machines Sabotaged . | . . . . . Overloaded Fab Kills . | . . . . . Hacking | -11 -10 -9 -8 -7 --------- Run | Yrd Mat Mat Mat Fac Machines Accessed 23 | . 7 5 10 1 Terminals 16 | . 6 3 6 1 Fabricators . | . . . . . Repair Stations 3 | . 1 . 2 . Recycling Units 1 | . . . 1 . Scanalyzers 3 | . . 2 1 . Garrison Access . | . . . . . Total Hacks 73 | . 18 16 35 4 Successful 32 | . 7 5 19 1 Failed 41 | . 11 11 16 3 Catastrophic 11 | . 3 3 5 . Database Lockouts . | . . . . . Manual 36 | . 11 10 13 2 Terminals 45 | . 14 11 16 4 Fabricators . | . . . . . Repair Stations 17 | . 4 . 13 . Recycling Units 2 | . . . 2 . Scanalyzers 9 | . . 5 4 . Garrison Access . | . . . . . Terminal Hacks 12 | . 5 2 4 1 Part Schematic 3 | . 2 . 1 . Machine Index 1 | . . . 1 . Terminal Index 4 | . 1 1 1 1 Alert Level 1 | . . 1 . . Unreport Threat 1 | . 1 . . . Locate Traps 1 | . . . 1 . Reinforcement Status 1 | . 1 . . . Fabricator Hacks . | . . . . . Repair Station Hacks 11 | . 2 . 9 . Scan Component 7 | . 1 . 6 . Repair 4 | . 1 . 3 . Recycling Unit Hacks 2 | . . . 2 . Report Inventory 1 | . . . 1 . Retrieve Matter 1 | . . . 1 . Scanalyzer 7 | . . 3 4 . Insert Component 4 | . . 2 2 . Analyze 3 | . . 1 2 . Garrison Access Hacks . | . . . . . Unauthorized Hacks . | . . . . . Terminals . | . . . . . Fabricators . | . . . . . Repair Stations . | . . . . . Recycling Units . | . . . . . Scanalyzers . | . . . . . Garrison Access . | . . . . . Data Cores Recovered 1 | . . . 1 . Used 1 | . . . 1 . Hacking Detections 20 | . 7 5 7 1 Full Trace Events 10 | . 3 2 4 1 Feedback Events 1 | . 1 . . . Corruption 1 | . 1 . . . Feedback Blocked . | . . . . . Robot Schematics Acquired . | . . . . . Robots Built . | . . . . . Authchips . | . . . . . Time . | . . . . . Total Robot Build Rating . | . . . . . Part Schematics Acquired 6 | . 2 1 3 . Parts Built . | . . . . . Authchips . | . . . . . Time . | . . . . . Total Part Build Rating . | . . . . . Part Studies Acquired . | . . . . . Parts Repaired 4 | . 1 . 3 . Time 114 | . 26 . 88 . Parts Recycled . | . . . . . Recycled Matter . | . . . . . Retrieved Matter 162 | . . . 162 . Retrieved Components . | . . . . . Parts Scanalyzed 3 | . . 1 2 . Part Schematics Acquired 3 | . . 1 2 . Parts Damaged . | . . . . . Bothacking | -11 -10 -9 -8 -7 ------------ Run | Yrd Mat Mat Mat Fac Used RIF Installer . | . . . . . Robots Hacked . | . . . . . Non-combat . | . . . . . Combat . | . . . . . Robot Hacks Applied . | . . . . . Relay Couplers Released . | . . . . . Fabnet Peak Effective % . | . . . . . Robots Rewired . | . . . . . Allies Hacked . | . . . . . Hacks Repelled . | . . . . . Allies | -11 -10 -9 -8 -7 -------- Run | Yrd Mat Mat Mat Fac Total Allies . | . . . . . Largest Group . | . . . . . Highest-Rated Group . | . . . . . Highest-Rated Ally . | . . . . . Total Orders . | . . . . . Ally Attacks . | . . . . . Total Damage . | . . . . . Kills . | . . . . . Allies Corrupted . | . . . . . Allies Melted . | . . . . . Intel | -11 -10 -9 -8 -7 ------- Run | Yrd Mat Mat Mat Fac Active Infowar (turns) 3855 | 49 1097 563 1786 360 Sensors 2205 | . . 228 1617 360 Seismic 1458 | 49 1097 312 . . Jamming 91 | . . . . 91 ECM 773 | . . 79 694 . Robot Analysis Total . | . . . . . Derelict Logs Recovered . | . . . . . Drone Launches . | . . . . . Drone Recoveries . | . . . . . Exploration | -11 -10 -9 -8 -7 ------------- Run | Yrd Mat Mat Mat Fac Turns Passed 4283 | 206 1097 563 2057 360 Spaces Moved 1988 | 95 485 266 939 203 Core 3 | 3 . . . . Treads 1962 | 92 469 266 939 196 Legs . | . . . . . Wheels 23 | . 16 . . 7 Hover . | . . . . . Flight . | . . . . . Fastest Speed 50 | 50 110 160 155 95 Average Speed 159 | 156 158 160 160 160 Slowest Speed 240 | 160 160 160 240 163 Overloaded Moves . | . . . . . Propulsion Burnouts . | . . . . . Robots Hopped . | . . . . . Potential Cave-ins . | . . . . . Cave-ins Triggered . | . . . . . Exploration Rate (%) 31 | 5 62 28 54 7 Regions Visited 4 Branch Regions . Pre-discovered Areas . | . . . . . Known Exits Taken 2 | . . 1 1 . Unknown Exits Taken 2 | 1 1 . . . Scrap Searched . | . . . . . Spaces Dug 3 | . 2 . 1 . Terrain Destroyed 62 | . 2 . 60 . Melee . | . . . . . Projectile 3 | . 2 . 1 . AOE 59 | . . . 59 . Terrain Rammed . | . . . . . Walls Destroyed . | . . . . . Machines Disabled . | . . . . . Actions | -11 -10 -9 -8 -7 --------- Run | Yrd Mat Mat Mat Fac Total 2737 | 124 725 347 1322 219 Wait 384 | . 171 22 191 . Move 1984 | 94 484 265 938 203 Hop . | . . . . . Pick Up 54 | 8 7 10 28 1 Fast Attach 18 | 7 . 1 8 2 Attach 19 | . 1 5 10 3 Detach 3 | . . 2 1 . Swap 36 | 2 7 4 22 1 Drop 37 | . 6 6 25 . Fire 182 | 13 46 32 83 8 Melee . | . . . . . Ram . | . . . . . Kick . | . . . . . Crush 20 | . 3 . 16 1 Escape Stasis . | . . . . . Rewire . | . . . . . Trap . | . . . . . Miscellaneous . | . . . . . Route ------- -11/Scrapyard -10/Materials -9/Materials -8/Materials -7/Factory History --------- Turn | Location | Event 9 | -11/Scrapyard | Discovered new exit (range 15) 207 | -11/Scrapyard | Entered Materials 303 | -10/Materials | Build established: Mutant 641 | -10/Materials | Discovered new exit (range 16) 990 | -10/Materials | Repaired Lgt. Treads 1304 | -10/Materials | Entered another Materials area 1304 | -9/Materials | Evolved 2 slots: Power x1, Utility x1 1681 | -9/Materials | Discovered new exit (range 15) 1742 | -9/Materials | Identified exit to Materials 1810 | -9/Materials | Build established: Scavenger-Mutant 1867 | -9/Materials | Entered another Materials area 1867 | -8/Materials | Evolved 2 slots: Propulsion x1, Utility x1 2366 | -8/Materials | Repaired Broken Lgt. Treads 2393 | -8/Materials | Repaired Lgt. Treads 2421 | -8/Materials | Repaired Sensor Array 2593 | -8/Materials | Destroyed 7 combat bots 2598 | -8/Materials | Lost 4 parts (2p1n1u) 3097 | -8/Materials | Discovered new exit (range 16) 3104 | -8/Materials | Build established: Mutant 3136 | -8/Materials | Identified exit to Factory 3698 | -8/Materials | Core integrity fell below 50% 3786 | -8/Materials | Lost 3 parts (3w) 3924 | -8/Materials | Entered Factory 3924 | -7/Factory | Evolved 2 slots: Propulsion x1, Utility x1 4284 | -7/Factory | Self-destructed Last Messages --------------- 04071_ Acquired Gravmag System. 04082_ Acquired Hpw. Shotgun. 04112_ ALERT: All DSF locations entering lockdown mode. 04193_ Acquired Transmission Jammer. 04196_ Connecting with Terminal... >>Index(Terminals) Found 20 terminals. Downloaded coordinate data. 04196_ ALERT: Suspicious activity at Terminal F009. Dispatching Investigation squad. 04252_ Penetrated by Slug. 04252_ Arm. Treads destroyed. 04255_ Penetrated by Slug. 04261_ Lgt. Angular Momentum Engine destroyed. 04264_ Penetrated by Slug. 04264_ Arm. Treads destroyed. 04264_ H-55 Commando suffers critical hit (Burn). 04267_ Penetrated by Slug. 04267_ H-55 Commando destroyed. 04272_ Acquired 44 matter. Map ----- +----------------------------------------------------+ | ????????????????? ? #????# | | ????????????????# """"" """"" #????# """ """ | | ????????????????# """"" """"" #?????? """ """ | | ????????????????# """ """ #????# """ """ | | ????????????????# #????# | | ????????????????# """"" """"" #????# """ """ " | | ????????????????# """"" """"" #????# """ """ " | | ????????????????# """ """ #????# """ """ " | | ????????????????# #????# | | ????????????????# #????# | | ??????????????##########+####################+#### | | ?????????????# | | ?????????????# | | ?????????????# | | ?????????????# | | ?????????????# | | ?????????????# ############+######"########### | | ?????????????# # # # #????? | | ???????????? ?# + #! #????? | | ???????????? ??+ # """""" # #????? | | ????????????? ???# = # """""" #""" #????? | | ????????????? ????# ! !# """""" #""" #????? | | ???????????????????# # """""" #""" #????? | | ???????????????????# # # #????? | | ???????????????????# # ???#""" #????? | | ???????????????????# @ # ???#""" #?#+#? | | ???????????????????# ###?###??#""" #?# #? | | ???????????????????# #????????# #?# #? | | ???????????????????#########????????#w#######?# ## | | ????????????????????????????????????# #???????# | | ????????????????????????????????????# #???????# | | ??????????????????????????????????### ######### | | ??????????????????????????????????# | | ??????????????????????????????????# | | ??????????????????????????????????# | | ??????????????????????????????????# | | ??????????????????????????????????# | | ???????????????????????????????####+#+############ | | ???????????????????????????????# #????? | | ???????????????????????????????# """" #????? | | ???????????????????????????????# ""R"" #????? | | ???????????????????????????????# "" "" #????? | | ???????????????????????????????# #????? | | ???????????????????????????????# #????? | | ???????????????????????????????# #????? | | ???????????????????????????????# #????? | | ???????????????????????????????# #????? | | ???????????????????????????????# ! #????? | | ???????????????????????????????# #????? | | ???????????????????????????????# #????? | +----------------------------------------------------+ Best States ------------- Heat Dissipation 34 Energy Generation 27 Energy Capacity 305 Matter Stores 300 Matter Capacity 300 Sight Range 16 Robot Scan Range 15 Terrain Scan Density 10 ECM Strength 1 Jamming Range 12 Evasion (%) 41 Recoil Reduction 4 Offensive Hacking 10 Item Schematics ----------------- Flight Unit | -10/Materials | Hacked Grenade Launcher | -10/Materials | Hacked ECM Suite | -9/Materials | Scanalyzed Sensor Array | -8/Materials | Scanalyzed Imp. Signal Interpreter | -8/Materials | Scanalyzed Hacking Suite | -8/Materials | Hacked Robot Schematics ------------------ None Fabricated ------------ Nothing Repaired ---------- Lgt. Treads | 35% | -10/Materials Lgt. Treads | 12% | -8/Materials | Broken Lgt. Treads | 94% | -8/Materials Sensor Array | 30% | -8/Materials Studied --------- None Alien Tech Used ----------------- None Achievements -------------- Dynamic Key I Spy Use The Force Challenges ------------ None Game ------ Seed AntimissileControlEngine Manual? 0 Play Time 01:11:00 Cumulative 20.2 hours Start 2026.02.14 @ 21:29:53 End 2026.03.04 @ 15:03:39 Sessions 2 Manual Loads 0 Difficulty Rogue Special Mode None Game No. 19 Rogue 15 Adventurer 4 Explorer 0 Win Type - Total 0 Types 0/0/0/0/0/0/0/0/0/0 Lore% 7 Gallery% 15 Achievement% 16 Wizard Run 0 Options --------- Layout 0 ASCII 0 Keyboard 1 Movement Arrows Keybinds 0 Fullscreen 2 Font 32/CogWide Map View 78x50 Zoom Use 0% Tactical HUD 1 Map Filters NONE Filters NONE Steam 1 RUN: a72f138a-26b7-40cc-b5a8-ed4d2a64e1d4